bitfinex/quotes_BTCUSD_20241001
["timestamp","ask_amount","ask_price","bid_price","bid_amount"]
[1727826735275,0.23585543,61068.0,61067.0,0.131003]
[1727826735498,0.23585543,61068.0,61067.0,0.33869913]
[1727826735499,0.05955543,61068.0,61067.0,0.33869913]
[1727826735715,0.05955543,61068.0,61067.0,0.32853745]
[1727826735716,0.02648389,61068.0,61067.0,0.32853745]
[1727826735936,0.02748389,61068.0,61067.0,0.46553745]
[1727826736184,0.001819,61068.0,61067.0,0.46553745]
[1727826737113,0.079319,61068.0,61067.0,0.33269745]
[1727826737321,0.079319,61068.0,61067.0,0.31869745]
[1727826737322,0.078319,61068.0,61067.0,0.31869745]
[1727826737543,0.079319,61068.0,61067.0,0.33269745]
[1727826737755,0.09653288,61068.0,61067.0,0.33269745]
[1727826737998,0.079319,61068.0,61067.0,0.32569745]
[1727826738215,0.078319,61068.0,61067.0,0.31869745]
[1727826738443,0.080319,61068.0,61067.0,0.33969745]
[1727826738675,0.080319,61068.0,61067.0,0.152003]
[1727826738676,0.09755546,61068.0,61067.0,0.152003]
[1727826738896,0.002819,61068.0,61067.0,0.31669745]
[1727826739127,0.002819,61068.0,61067.0,0.33969745]
[1727826739829,0.002819,61068.0,61067.0,0.43969745]
[1727826741237,0.01993907,61068.0,61067.0,0.43969745]
[1727826741473,0.002819,61068.0,61067.0,0.43969745]
[1727826741705,0.01993764,61068.0,61067.0,0.43969745]
[1727826742031,0.01993764,61068.0,61067.0,0.152003]
[1727826742032,0.01992876,61068.0,61067.0,0.152003]
[1727826743411,0.002819,61068.0,61067.0,0.152003]
[1727826743636,0.002819,61068.0,61067.0,0.44297214]
[1727826743891,0.002819,61068.0,61067.0,0.63157992]
[1727826743892,0.01991512,61068.0,61067.0,0.63157992]
[1727826744101,0.002819,61068.0,61067.0,0.63157992]
[1727826746343,0.002819,61068.0,61067.0,0.33969745]
[1727826746344,0.080319,61068.0,61067.0,0.33969745]
[1727826746612,0.09738185,61068.0,61067.0,0.33969745]
[1727826746842,0.080319,61068.0,61067.0,0.33969745]
[1727826747973,0.09745309,61068.0,61067.0,0.33969745]
[1727826748731,0.19595309,61068.0,61067.0,0.021]
[1727826749215,0.21067409,61068.0,61067.0,0.021]
[1727826749724,0.21067409,61068.0,61067.0,0.152003]
[1727826749964,0.324541,61068.0,61067.0,0.021]
[1727826750404,0.34167058,61068.0,61067.0,0.021]
[1727826750658,0.34167058,61068.0,61067.0,0.152003]
[1727826750659,0.11216958,61068.0,61067.0,0.152003]
[1727826750890,0.11216958,61068.0,61067.0,0.31669745]
[1727826750891,0.03466958,61068.0,61067.0,0.31669745]
[1727826751122,0.002819,61068.0,61067.0,0.31669745]
[1727826751604,0.002819,61068.0,61067.0,0.33969745]
[1727826751845,0.002819,61068.0,61067.0,0.43969745]
[1727826752112,0.002819,61068.0,61067.0,0.44520277]
[1727826752341,0.002819,61068.0,61067.0,0.48004277]
[1727826753272,0.001819,61068.0,61067.0,0.46404277]
[1727826753523,0.002819,61068.0,61067.0,0.47804277]
[1727826753760,0.001819,61068.0,61067.0,0.47104277]
[1727826754228,0.002819,61068.0,61067.0,0.47104277]
[1727826754722,0.003819,61068.0,61067.0,0.48504277]
[1727826755450,0.002819,61068.0,61067.0,0.47104277]
[1727826755676,0.002819,61068.0,61067.0,0.48504277]
[1727826757804,0.000819,61068.0,61067.0,0.47104277]
[1727826758019,0.001819,61068.0,61067.0,0.48504277]
[1727826758260,0.001819,61068.0,61067.0,0.028]
[1727826758500,0.14996723,61068.0,61067.0,0.028]
[1727826758739,0.16330396,61068.0,61067.0,0.028]
[1727826758981,0.16330396,61068.0,61067.0,0.014]
[1727826758982,0.66364094,61068.0,61067.0,0.014]
[1727826759255,0.54100388,61068.0,61067.0,0.014]
[1727826759491,0.54100388,61068.0,61067.0,0.028]
[1727826759492,0.70207644,61068.0,61067.0,0.028]
[1727826759723,0.76219722,61068.0,61067.0,0.028]
[1727826759977,0.44762141,61068.0,61067.0,0.014]
[1727826760224,0.26280396,61068.0,61067.0,0.014]
[1727826760450,0.26280396,61068.0,61059.0,0.000818]
[1727826760451,0.262008,61067.0,61059.0,0.000818]
[1727826760694,0.131018,61060.0,61059.0,0.000818]
[1727826760925,0.14816523,61060.0,61059.0,0.000818]
[1727826761402,0.16145749,61060.0,61059.0,0.000818]
[1727826762376,0.16130904,61060.0,61059.0,0.000818]
[1727826762857,0.17830311,61060.0,61059.0,0.000818]
[1727826763369,0.25290433,61060.0,61059.0,0.002818]
[1727826763607,0.33520433,61060.0,61059.0,0.002818]
[1727826764071,0.360875,61060.0,61059.0,0.002818]
[1727826764296,0.360875,61060.0,61059.0,0.000818]
[1727826764740,0.369875,61060.0,61059.0,0.001818]
[1727826765005,0.369875,61060.0,61059.0,0.000818]
[1727826765006,0.362875,61060.0,61059.0,0.000818]
[1727826765225,0.368875,61060.0,61059.0,0.001818]
[1727826765664,0.366875,61060.0,61059.0,0.001818]
[1727826766759,0.368875,61060.0,61059.0,0.001818]
[1727826767198,0.360875,61060.0,61059.0,0.000818]
[1727826767421,0.367875,61060.0,61059.0,0.001818]
[1727826767637,0.362875,61060.0,61059.0,0.000818]
[1727826768074,0.368875,61060.0,61059.0,0.001818]
[1727826769003,0.366875,61060.0,61059.0,0.001818]
[1727826769486,0.36885746,61060.0,61059.0,0.001818]
[1727826769946,0.37049346,61060.0,61059.0,0.001818]
[1727826770651,0.36449346,61060.0,61059.0,0.000818]
[1727826770888,0.36949346,61060.0,61059.0,0.000818]
[1727826773705,0.36449346,61060.0,61059.0,0.000818]
[1727826773969,0.36949346,61060.0,61059.0,0.000818]
[1727826774178,0.36449346,61060.0,61059.0,0.000818]
[1727826774391,0.36249346,61060.0,61059.0,0.000818]
[1727826774575,0.36649346,61060.0,61059.0,0.000818]
[1727826774835,0.36249346,61060.0,61059.0,0.000818]
[1727826775053,0.36449346,61060.0,61059.0,0.000818]
[1727826775518,0.36649346,61060.0,61059.0,0.000818]
[1727826775988,0.36449346,61060.0,61059.0,0.000818]
[1727826778945,0.36448049,61060.0,61059.0,0.000818]
[1727826779644,0.36448049,61060.0,61059.0,0.001818]
[1727826779885,0.05956249,61060.0,61059.0,0.001818]
[1727826780113,0.01692826,61060.0,61059.0,0.132838]
[1727826780327,0.01492826,61060.0,61059.0,0.132838]
[1727826780524,0.001636,61060.0,61059.0,0.132838]
[1727826781287,0.002636,61060.0,61059.0,0.139838]
[1727826781718,0.001636,61060.0,61059.0,0.132838]
[1727826782185,0.001636,61060.0,61059.0,0.140838]
[1727826782186,0.002636,61060.0,61059.0,0.140838]
[1727826782410,0.001636,61060.0,61059.0,0.132838]
[1727826782627,0.001636,61060.0,61059.0,0.131838]
[1727826782871,0.001636,61060.0,61059.0,0.133838]
[1727826783321,0.02730441,61060.0,61059.0,0.133838]
[1727826783568,0.02730441,61060.0,61059.0,0.131838]
[1727826783786,0.02830441,61060.0,61059.0,0.151838]
[1727826784030,0.02730441,61060.0,61059.0,0.141838]
[1727826784256,0.02730441,61060.0,61059.0,0.149838]
[1727826784257,0.02830441,61060.0,61059.0,0.149838]
[1727826784745,0.04528155,61060.0,61059.0,0.149838]
[1727826785216,0.04528155,61060.0,61059.0,0.139838]
[1727826785448,0.04528155,61060.0,61059.0,0.147838]
[1727826786597,0.04528155,61060.0,61059.0,0.33553245]
[1727826786598,0.02830441,61060.0,61059.0,0.33553245]
[1727826786867,0.002636,61060.0,61059.0,0.33553245]
[1727826787085,0.002636,61060.0,61059.0,0.32753245]
[1727826787306,0.002636,61060.0,61059.0,0.31953245]
[1727826787307,0.001636,61060.0,61059.0,0.31953245]
[1727826787546,0.002636,61060.0,61059.0,0.32853245]
[1727826788428,0.1506541,61060.0,61059.0,0.018818]
[1727826788657,0.16381563,61060.0,61059.0,0.018818]
[1727826791166,0.14681553,61060.0,61059.0,0.018818]
[1727826793273,0.16370818,61060.0,61059.0,0.018818]
[1727826793920,0.18937871,61060.0,61059.0,0.018818]
[1727826794146,0.14681553,61060.0,61059.0,0.018818]
[1727826796626,0.14681553,61060.0,61054.0,0.000818]
[1727826796627,0.131029,61055.0,61054.0,0.000818]
[1727826796853,0.38015967,61055.0,61054.0,0.000818]
[1727826797074,0.6031064,61055.0,61054.0,0.000818]
[1727826797319,0.4188785,61055.0,61054.0,0.000818]
[1727826797583,0.89446742,61055.0,61054.0,0.000818]
[1727826797830,0.79642653,61055.0,61054.0,0.000818]
[1727826798064,0.61024077,61055.0,61054.0,0.000818]
[1727826798296,0.61024077,61055.0,61054.0,0.001818]
[1727826798297,0.90640838,61055.0,61054.0,0.001818]
[1727826798529,0.91992215,61055.0,61054.0,0.001818]
[1727826798767,0.91992215,61055.0,61054.0,0.002818]
[1727826798768,0.90741896,61055.0,61054.0,0.002818]
[1727826798983,0.90838211,61055.0,61054.0,0.001818]
[1727826799199,0.90938211,61055.0,61054.0,0.002818]
[1727826799422,0.81138092,61055.0,61054.0,0.002818]
[1727826799744,0.90748672,61055.0,61054.0,0.002818]
[1727826799862,0.93196889,61055.0,61054.0,0.002818]
[1727826800073,0.91996889,61055.0,61054.0,0.001818]
[1727826800313,0.79741777,61055.0,61054.0,0.000818]
[1727826800502,0.93196889,61055.0,61054.0,0.000818]
[1727826800733,0.94196889,61055.0,61054.0,0.001818]
[1727826800925,0.82138092,61055.0,61054.0,0.001818]
[1727826801143,0.83338092,61055.0,61054.0,0.001818]
[1727826801343,0.95593204,61055.0,61054.0,0.001818]
[1727826801771,0.9302551,61055.0,61054.0,0.001818]
[1727826801972,0.80770398,61055.0,61054.0,0.001818]
[1727826802174,0.92836998,61055.0,61054.0,0.001818]
[1727826802409,0.80574083,61055.0,61054.0,0.001818]
[1727826803001,0.80770398,61055.0,61054.0,0.001818]
[1727826803734,0.80574083,61055.0,61054.0,0.001818]
[1727826805060,0.83141823,61055.0,61054.0,0.001818]
[1727826805544,0.83338138,61055.0,61054.0,0.001818]
[1727826806198,0.83141823,61055.0,61054.0,0.001818]
[1727826807546,0.83141823,61055.0,61051.0,0.000818]
[1727826807547,0.60048062,61052.0,61051.0,0.000818]
[1727826807769,0.93385366,61052.0,61051.0,0.000818]
[1727826807998,0.94672102,61052.0,61051.0,0.000818]
[1727826808236,0.79952498,61052.0,61051.0,0.000818]
[1727826808471,0.79756183,61052.0,61051.0,0.000818]
[1727826808723,0.79952498,61052.0,61051.0,0.000818]
[1727826809220,0.79756183,61052.0,61051.0,0.000818]
[1727826809640,0.79756183,61052.0,61051.0,0.001818]
[1727826809641,0.81156183,61052.0,61051.0,0.001818]
[1727826809931,0.9341608,61052.0,61051.0,0.001818]
[1727826810148,0.9201608,61052.0,61051.0,0.000818]
[1727826810392,0.9331608,61052.0,61051.0,0.000818]
[1727826810613,0.80756183,61052.0,61051.0,0.001818]
[1727826810826,0.81956183,61052.0,61051.0,0.001818]
[1727826811290,0.91761956,61052.0,61051.0,0.001818]
[1727826811517,0.51503981,61052.0,61051.0,0.001818]
[1727826811765,0.44150236,61052.0,61051.0,0.001818]
[1727826811978,0.49052649,61052.0,61051.0,0.001818]
[1727826812422,0.44150236,61052.0,61051.0,0.001818]
[1727826812871,0.76819685,61052.0,61051.0,0.001818]
[1727826813129,0.97843516,61052.0,61051.0,0.001818]
[1727826813341,0.97842336,61052.0,61051.0,0.001818]
[1727826813574,0.88038145,61052.0,61051.0,0.001818]
[1727826813823,1.00298042,61052.0,61051.0,0.001818]
[1727826814291,1.02865883,61052.0,61051.0,0.001818]
[1727826814526,1.90326006,61052.0,61051.0,0.001818]
[1727826814757,2.01495811,61052.0,61051.0,0.001818]
[1727826814993,2.02043539,61052.0,61051.0,0.001818]
[1727826815215,1.06055883,61052.0,61051.0,0.001818]
[1727826815435,0.90605986,61052.0,61051.0,0.001818]
[1727826816117,0.90802301,61052.0,61051.0,0.001818]
[1727826819612,0.90714812,61052.0,61051.0,0.001818]
[1727826820349,0.90714812,61052.0,61042.0,0.24532854]
[1727826820576,0.42293747,61043.0,61042.0,0.24532854]
[1727826821036,0.131065,61038.0,61037.0,0.001638]
[1727826821477,0.14391584,61038.0,61037.0,0.001638]
[1727826823395,0.14391584,61038.0,61037.0,0.005638]
[1727826824095,0.14391584,61038.0,61037.0,0.006638]
[1727826824802,0.14391584,61038.0,61037.0,0.005638]
[1727826825032,0.16959713,61038.0,61037.0,0.005638]
[1727826825701,0.16959713,61038.0,61037.0,0.001638]
[1727826826163,0.16959713,61038.0,61037.0,0.003638]
[1727826826619,0.16959713,61038.0,61037.0,0.001638]
[1727826827068,0.16959713,61038.0,61037.0,0.003638]
[1727826829053,0.16959713,61038.0,61037.0,0.001638]
[1727826829306,0.17259713,61038.0,61037.0,0.001638]
[1727826829810,0.17359713,61038.0,61037.0,0.001638]
[1727826830016,0.17659713,61038.0,61037.0,0.001638]
[1727826830238,0.3684796,61038.0,61037.0,0.001638]
[1727826830450,0.3724796,61038.0,61037.0,0.001638]
[1727826831167,0.3644796,61038.0,61037.0,0.001638]
[1727826831384,0.3684796,61038.0,61037.0,0.001638]
[1727826831877,0.33979831,61038.0,61037.0,0.001638]
[1727826832087,0.34279831,61038.0,61037.0,0.001638]
[1727826835196,0.36848025,61038.0,61037.0,0.001638]
[1727826836324,0.34279831,61038.0,61037.0,0.001638]
[1727826838245,0.39182231,61038.0,61037.0,0.001638]
[1727826839361,0.36848024,61038.0,61037.0,0.001638]
[1727826840279,0.44201624,61038.0,61037.0,0.001638]
[1727826841338,0.55368295,61038.0,61037.0,0.001638]
[1727826841761,0.65194307,61038.0,61037.0,0.001638]
[1727826841985,0.36848024,61038.0,61037.0,0.001638]
[1727826842462,0.55381483,61038.0,61037.0,0.001638]
[1727826842915,0.62644746,61038.0,61037.0,0.001638]
[1727826843343,0.5281329,61038.0,61037.0,0.001638]
[1727826843749,0.46238189,61038.0,61037.0,0.001638]
[1727826846046,0.55771436,61038.0,61037.0,0.001638]
[1727826846260,0.5824007,61038.0,61037.0,0.001638]
[1727826846489,0.48806345,61038.0,61037.0,0.001638]
[1727826846912,0.48406345,61038.0,61037.0,0.001638]
[1727826847149,0.48706345,61038.0,61037.0,0.001638]
[1727826847358,0.60989726,61038.0,61037.0,0.001638]
[1727826847788,0.60689726,61038.0,61037.0,0.001638]
[1727826847993,0.60889726,61038.0,61037.0,0.001638]
[1727826848685,0.6956741,61038.0,61037.0,0.001638]
[1727826848878,0.60889726,61038.0,61037.0,0.001638]
[1727826849089,0.48606345,61038.0,61037.0,0.001638]
[1727826849956,0.46038189,61038.0,61037.0,0.001638]
[1727826851230,0.46059542,61038.0,61037.0,0.001638]
[1727826852507,0.56059542,61038.0,61037.0,0.001638]
[1727826852720,0.90367724,61038.0,61037.0,0.001638]
[1727826852956,0.92936173,61038.0,61037.0,0.001638]
[1727826853193,1.16359999,61038.0,61037.0,0.001638]
[1727826853640,1.16159999,61038.0,61037.0,0.001638]
[1727826853852,1.15859999,61038.0,61037.0,0.001638]
[1727826854062,1.16359999,61038.0,61037.0,0.001638]
[1727826854268,1.33762997,61038.0,61037.0,0.001638]
[1727826854478,1.33262997,61038.0,61037.0,0.001638]
[1727826854950,1.17756314,61038.0,61037.0,0.001638]
[1727826855372,1.34356887,61038.0,61037.0,0.001638]
[1727826855576,1.06380489,61038.0,61037.0,0.001638]
[1727826856008,1.34802739,61038.0,61037.0,0.001638]
[1727826856209,1.35902739,61038.0,61037.0,0.001638]
[1727826856340,1.34802739,61038.0,61037.0,0.001638]
[1727826856744,1.37102739,61038.0,61037.0,0.001638]
[1727826857446,1.36102739,61038.0,61037.0,0.001638]
[1727826857660,1.34634306,61038.0,61037.0,0.001638]
[1727826858523,1.32234306,61038.0,61037.0,0.001638]
[1727826858760,1.33434306,61038.0,61037.0,0.001638]
[1727826858963,1.34834306,61038.0,61037.0,0.001638]
[1727826860057,1.34831472,61038.0,61037.0,0.001638]
[1727826860685,1.36199924,61038.0,61037.0,0.001638]
[1727826860896,1.37399924,61038.0,61037.0,0.001638]
[1727826861330,1.19602193,61038.0,61037.0,0.001638]
[1727826861563,1.18202193,61038.0,61037.0,0.001638]
[1727826861772,1.19302193,61038.0,61037.0,0.001638]
[1727826861992,1.20702193,61038.0,61037.0,0.001638]
[1727826862685,1.19302193,61038.0,61037.0,0.001638]
[1727826863142,1.20702193,61038.0,61037.0,0.001638]
[1727826863553,1.19602193,61038.0,61037.0,0.001638]
[1727826863948,1.20802193,61038.0,61037.0,0.001638]
[1727826865072,1.20781325,61038.0,61037.0,0.001638]
[1727826865947,1.2097764,61038.0,61037.0,0.001638]
[1727826867656,1.20781325,61038.0,61037.0,0.001638]
[1727826872047,1.18212873,61038.0,61037.0,0.001638]
[1727826874017,1.18409188,61038.0,61037.0,0.001638]
[1727826874484,1.10112149,61038.0,61036.0,0.001636]
[1727826874701,0.35721146,61031.0,61030.0,0.001636]
[1727826874898,0.54179463,61031.0,61030.0,0.001636]
[1727826875140,0.5801789,61031.0,61030.0,0.001636]
[1727826875368,0.72762683,61031.0,61030.0,0.001636]
[1727826875587,0.5801789,61031.0,61030.0,0.001636]
[1727826876686,0.5881789,61031.0,61030.0,0.001636]
[1727826877789,0.73584011,61031.0,61030.0,0.001636]
[1727826878467,0.5981789,61031.0,61030.0,0.001636]
[1727826879329,0.59798381,61031.0,61030.0,0.001636]
[1727826881364,0.59994696,61031.0,61030.0,0.001636]
[1727826881545,0.67924696,61031.0,61030.0,0.001636]
[1727826881982,0.65355964,61031.0,61030.0,0.001636]
[1727826882193,0.81044146,61031.0,61030.0,0.001636]
[1727826882438,0.82244146,61031.0,61030.0,0.001636]
[1727826882635,0.81244146,61031.0,61030.0,0.001636]
[1727826882818,0.81047831,61031.0,61030.0,0.001636]
[1727826883069,0.79847831,61031.0,61030.0,0.001636]
[1727826883279,0.80947831,61031.0,61030.0,0.001636]
[1727826884161,0.82347831,61031.0,61030.0,0.001636]
[1727826884376,0.80947831,61031.0,61030.0,0.001636]
[1727826884626,0.80044146,61031.0,61030.0,0.001636]
[1727826884820,0.81444146,61031.0,61030.0,0.001636]
[1727826885032,0.82644146,61031.0,61030.0,0.001636]
[1727826885284,0.85212958,61031.0,61030.0,0.001636]
[1727826885933,0.84012958,61031.0,61030.0,0.001636]
[1727826886339,0.82644146,61031.0,61030.0,0.001636]
[1727826887620,0.80044146,61031.0,61030.0,0.001636]
[1727826887833,0.81444146,61031.0,61030.0,0.001636]
[1727826888053,0.82644146,61031.0,61030.0,0.001636]
[1727826888474,0.84044146,61031.0,61030.0,0.001636]
[1727826889370,0.86612968,61031.0,61030.0,0.001636]
[1727826889590,0.86416653,61031.0,61030.0,0.001636]
[1727826891452,1.12420863,61031.0,61030.0,0.001636]
[1727826891705,0.84044146,61031.0,61030.0,0.001636]
[1727826891901,0.83847831,61031.0,61030.0,0.001636]
[1727826892326,1.09655726,61031.0,61030.0,0.001636]
[1727826892545,0.84044146,61031.0,61030.0,0.001636]
[1727826894495,1.09852041,61031.0,61030.0,0.001636]
[1727826894915,0.86612955,61031.0,61030.0,0.001636]
[1727826895594,0.69928458,61031.0,61030.0,0.001636]
[1727826895812,0.70124773,61031.0,61030.0,0.001636]
[1727826896057,0.67555964,61031.0,61030.0,0.001636]
[1727826896266,0.84140087,61031.0,61030.0,0.001636]
[1727826896684,0.67555964,61031.0,61030.0,0.001636]
[1727826896890,0.72624398,61031.0,61030.0,0.001636]
[1727826897115,0.59429649,61031.0,61030.0,0.001636]
[1727826898238,0.59430662,61031.0,61030.0,0.001636]
[1727826899080,0.61999439,61031.0,61030.0,0.001636]
[1727826899508,0.72532043,61031.0,61030.0,0.001636]
[1727826899956,0.61999439,61031.0,61030.0,0.001636]
[1727826900376,0.78599795,61031.0,61030.0,0.001636]
[1727826901566,0.61999439,61031.0,61030.0,0.001636]
[1727826901800,0.76026482,61031.0,61030.0,0.001636]
[1727826903381,0.59421085,61031.0,61030.0,0.001636]
[1727826903593,0.76026482,61031.0,61030.0,0.001636]
[1727826905152,0.95083479,61031.0,61030.0,0.001636]
[1727826906006,0.78478082,61031.0,61030.0,0.001636]
[1727826906211,0.59424625,61031.0,61030.0,0.001636]
[1727826906433,0.76031518,61031.0,61030.0,0.001636]
[1727826907973,0.76031518,61031.0,61030.0,0.093036]
[1727826907974,0.515722,61031.0,61030.0,0.093036]
[1727826908189,0.36811479,61031.0,61030.0,0.093036]
[1727826908917,0.36811479,61031.0,61030.0,0.001636]
[1727826909139,0.39380014,61031.0,61030.0,0.001636]
[1727826909783,0.38180014,61031.0,61030.0,0.001636]
[1727826909988,0.35380014,61031.0,61030.0,0.001636]
[1727826910210,0.36680014,61031.0,61030.0,0.001636]
[1727826910649,0.51040735,61031.0,61030.0,0.001636]
[1727826910866,0.35380014,61031.0,61030.0,0.001636]
[1727826911071,0.36580014,61031.0,61030.0,0.001636]
[1727826911278,0.51340735,61031.0,61030.0,0.001636]
[1727826911491,0.36580014,61031.0,61030.0,0.001636]
[1727826911704,0.34011479,61031.0,61030.0,0.001636]
[1727826911915,0.50499661,61031.0,61030.0,0.001636]
[1727826913420,0.49999661,61031.0,61030.0,0.001636]
[1727826913626,0.49799661,61031.0,61030.0,0.001636]
[1727826913837,0.65260382,61031.0,61030.0,0.001636]
[1727826914076,0.50499661,61031.0,61030.0,0.001636]
[1727826915183,0.53068195,61031.0,61030.0,0.001636]
[1727826915409,0.34634411,61031.0,61030.0,0.001636]
[1727826915623,0.53145848,61031.0,61030.0,0.001636]
[1727826916378,0.50577314,61031.0,61030.0,0.001636]
[1727826918654,0.34089132,61031.0,61030.0,0.001636]
[1727826919296,0.36657673,61031.0,61030.0,0.001636]
[1727826920153,0.36654965,61031.0,61030.0,0.001636]
[1727826920867,0.46654965,61031.0,61030.0,0.001636]
[1727826921066,0.4685128,61031.0,61030.0,0.001636]
[1727826921307,0.79942822,61031.0,61030.0,0.001636]
[1727826921747,0.62466613,61031.0,61030.0,0.001636]
[1727826922176,0.71556613,61031.0,61030.0,0.001636]
[1727826922643,0.71056613,61031.0,61030.0,0.001636]
[1727826922877,0.71756613,61031.0,61030.0,0.001636]
[1727826923100,0.71056613,61031.0,61030.0,0.001636]
[1727826923309,0.71256613,61031.0,61030.0,0.001636]
[1727826923525,0.71756613,61031.0,61030.0,0.001636]
[1727826923731,0.73156613,61031.0,61030.0,0.001636]
[1727826924649,0.81093809,61031.0,61030.0,0.001636]
[1727826924860,0.35722646,61024.0,61023.0,0.001638]
[1727826925073,0.55864263,61024.0,61023.0,0.001638]
[1727826925285,0.57140837,61024.0,61023.0,0.001638]
[1727826926159,0.57337152,61024.0,61023.0,0.001638]
[1727826926585,0.58637152,61024.0,61023.0,0.001638]
[1727826927028,0.75225334,61024.0,61023.0,0.001638]
[1727826927238,0.75029019,61024.0,61023.0,0.001638]
[1727826927472,0.76429019,61024.0,61023.0,0.001638]
[1727826927713,0.75225334,61024.0,61023.0,0.001638]
[1727826927924,0.56845145,61024.0,61023.0,0.001638]
[1727826928167,0.59957437,61024.0,61023.0,0.001638]
[1727826928391,0.60153752,61024.0,61023.0,0.001638]
[1727826928834,0.58753752,61024.0,61023.0,0.001638]
[1727826929070,0.62622758,61024.0,61023.0,0.001638]
[1727826929294,0.77514625,61024.0,61023.0,0.001638]
[1727826929523,0.77614625,61024.0,61023.0,0.001638]
[1727826929940,0.7781094,61024.0,61023.0,0.001638]
[1727826930151,0.7921094,61024.0,61023.0,0.001638]
[1727826930588,0.76641934,61024.0,61023.0,0.001638]
[1727826930816,0.76643545,61024.0,61023.0,0.001638]
[1727826931429,0.7644723,61024.0,61023.0,0.001638]
[1727826932343,0.7364723,61024.0,61023.0,0.001638]
[1727826932558,0.7504723,61024.0,61023.0,0.001638]
[1727826932775,0.76443545,61024.0,61023.0,0.001638]
[1727826933221,0.75043545,61024.0,61023.0,0.001638]
[1727826933437,0.73843545,61024.0,61023.0,0.001638]
[1727826933658,0.7634723,61024.0,61023.0,0.001638]
[1727826933900,1.0468031,61024.0,61023.0,0.001638]
[1727826934158,0.74608233,61024.0,61023.0,0.001638]
[1727826934610,0.76320939,61024.0,61023.0,0.001638]
[1727826936176,0.76517254,61024.0,61023.0,0.001638]
[1727826937512,0.7908627,61024.0,61023.0,0.001638]
[1727826938468,0.9347627,61024.0,61023.0,0.001638]
[1727826938676,0.9487627,61024.0,61023.0,0.001638]
[1727826938887,0.9617627,61024.0,61023.0,0.001638]
[1727826939346,0.9487627,61024.0,61023.0,0.001638]
[1727826939774,0.9627627,61024.0,61023.0,0.001638]
[1727826940000,0.9347627,61024.0,61023.0,0.001638]
[1727826940342,0.9627627,61024.0,61023.0,0.001638]
[1727826941868,0.93707254,61024.0,61023.0,0.001638]
[1727826943387,0.93510939,61024.0,61023.0,0.001638]
[1727826943625,0.80897793,61024.0,61023.0,0.001638]
[1727826943816,0.77022757,61024.0,61023.0,0.001638]
[1727826944073,0.75506366,61024.0,61023.0,0.001638]
[1727826944937,0.780755,61024.0,61023.0,0.001638]
[1727826948708,0.79802067,61024.0,61023.0,0.001638]
[1727826951061,0.67188921,61024.0,61023.0,0.001638]
[1727826951301,0.96290249,61024.0,61023.0,0.001638]
[1727826952416,0.96282083,61024.0,61023.0,0.001638]
[1727826955968,0.94555516,61024.0,61023.0,0.001638]
[1727826956621,0.96281383,61024.0,61023.0,0.001638]
[1727826957464,0.88281175,61024.0,61023.0,0.001638]
[1727826959480,0.62506678,61024.0,61023.0,0.001638]
[1727826959920,0.59937544,61024.0,61023.0,0.001638]
[1727826961000,0.35924398,61024.0,61023.0,0.171638]
[1727826961217,0.48216318,61024.0,61023.0,0.171638]
[1727826961436,0.0420155,61024.0,61023.0,0.302736]
[1727826961640,0.09117587,61024.0,61023.0,0.302736]
[1727826961854,0.0300155,61024.0,61023.0,0.302736]
[1727826962053,0.0440155,61024.0,61023.0,0.302736]
[1727826962300,0.0400155,61024.0,61023.0,0.302736]
[1727826962509,0.0410155,61024.0,61023.0,0.302736]
[1727826962735,0.0310155,61024.0,61023.0,0.302736]
[1727826962939,0.05079637,61030.0,61029.0,0.131085]
[1727826962940,0.001636,61030.0,61029.0,0.131085]
[1727826963141,0.001636,61030.0,61029.0,0.301085]
[1727826963343,0.01637809,61030.0,61029.0,0.301085]
[1727826963563,0.001636,61030.0,61029.0,0.301085]
[1727826964735,0.001636,61030.0,61029.0,0.303085]
[1727826964947,0.002636,61030.0,61029.0,0.303085]
[1727826965175,0.001636,61030.0,61029.0,0.301085]
[1727826965373,0.002636,61030.0,61029.0,0.303085]
[1727826967398,0.003636,61030.0,61029.0,0.303085]
[1727826969208,0.002636,61030.0,61029.0,0.303085]
[1727826970055,0.001636,61030.0,61029.0,0.301085]
[1727826970500,0.002636,61030.0,61029.0,0.303085]
[1727826970699,0.003636,61030.0,61029.0,0.303085]
[1727826971882,0.003636,61030.0,61029.0,0.172]
[1727826972117,0.003636,61030.0,61029.0,0.0791]
[1727826972118,0.134719,61030.0,61029.0,0.0791]
[1727826972324,0.14986902,61030.0,61029.0,0.0791]
[1727826973737,0.14886902,61030.0,61029.0,0.0771]
[1727826974363,0.15386902,61030.0,61029.0,0.0771]
[1727826974672,0.14886902,61030.0,61029.0,0.0771]
[1727826974864,0.14986902,61030.0,61029.0,0.0771]
[1727826975081,0.16774392,61030.0,61029.0,0.0771]
[1727826975506,0.19242666,61030.0,61029.0,0.0771]
[1727826975724,0.19042666,61030.0,61029.0,0.0771]
[1727826976183,0.19142666,61030.0,61029.0,0.0771]
[1727826977354,0.19042666,61030.0,61029.0,0.0771]
[1727826977818,0.17355176,61030.0,61029.0,0.0771]
[1727826977997,0.19041722,61030.0,61029.0,0.0771]
[1727826981176,0.19045808,61030.0,61029.0,0.0771]
[1727826983155,0.131093,61025.0,61024.0,0.081]
[1727826983383,0.131093,61025.0,61023.0,0.001638]
[1727826983384,0.131095,61024.0,61023.0,0.001638]
[1727826983611,0.14800132,61024.0,61023.0,0.001638]
[1727826983882,0.16312551,61024.0,61023.0,0.001638]
[1727826987013,0.18881074,61024.0,61023.0,0.001638]
[1727826987484,0.18889231,61024.0,61023.0,0.001638]
[1727826989098,0.19089231,61024.0,61023.0,0.001638]
[1727826989518,0.28979231,61024.0,61023.0,0.001638]
[1727826989723,0.38979231,61024.0,61023.0,0.001638]
[1727826990155,0.38779231,61024.0,61023.0,0.001638]
[1727826990386,0.37280442,61024.0,61023.0,0.001638]
[1727826990620,0.38984911,61024.0,61023.0,0.001638]
[1727826990839,0.38984926,61024.0,61023.0,0.001638]
[1727826991059,0.38784926,61024.0,61023.0,0.001638]
[1727826991572,0.39484926,61024.0,61023.0,0.001638]
[1727826991780,0.36216403,61024.0,61023.0,0.001638]
[1727826991984,0.36916403,61024.0,61023.0,0.001638]
[1727826992403,0.37416403,61024.0,61023.0,0.001638]